[Event "NJSK 2018 Jeugd C"]
[Site "Assen, Netherlands"]
[Date "2018.04.29"]
[Round "1.8"]
[White "Van der Hagen, Loek"]
[Black "Van Foreest, Nanne"]
[Result "1/2-1/2"]
[TimeControl "40/90m+30sec/move"]
[WhiteElo "1815"]
[BlackElo "1482"]

1. e4 {[%clk 01:30:57]} {[%emt 00:00:03]} e5 {[%clk 01:31:27]} {[%emt
00:00:03]} 2. Nf3 {[%clk 01:31:21]} {[%emt 00:00:06]} Nc6 {[%clk 01:31:52]}
{[%emt 00:00:05]} 3. Bb5 {[%clk 01:31:45]} {[%emt 00:00:05]} Nf6 {[%clk
01:32:17]} {[%emt 00:00:07]} 4. d3 {[%clk 01:31:41]} {[%emt 00:00:32]} Bc5
{[%clk 01:32:40]} {[%emt 00:00:08]} 5. Nbd2 {[%clk 01:31:34]} {[%emt 00:00:35]}
d5 {[%clk 01:32:21]} {[%emt 00:00:49]} 6. exd5 {[%clk 01:30:16]} {[%emt
00:01:49]} Qxd5 {[%clk 01:32:38]} {[%emt 00:00:14]} 7. Bc4 {[%clk 01:29:46]}
{[%emt 00:01:00]} Qd6 {[%clk 01:32:59]} {[%emt 00:00:09]} 8. Nb3 {[%clk
01:27:21]} {[%emt 00:02:55]} Bb6 {[%clk 01:32:46]} {[%emt 00:00:42]} 9. Be3
{[%clk 01:25:05]} {[%emt 00:02:46]} Bxe3 {[%clk 01:32:27]} {[%emt 00:00:50]} 10.
fxe3 {[%clk 01:25:25]} {[%emt 00:00:10]} O-O {[%clk 01:32:32]} {[%emt
00:00:25]} 11. O-O {[%clk 01:24:52]} {[%emt 00:01:02]} a6 {[%clk 01:31:09]}
{[%emt 00:01:54]} 12. d4 {[%clk 01:21:28]} {[%emt 00:03:54]} e4 {[%clk
01:31:04]} {[%emt 00:00:35]} 13. Ng5 {[%clk 01:05:12]} {[%emt 00:16:46]} h6
{[%clk 01:29:22]} {[%emt 00:02:13]} 14. Rxf6 {[%clk 01:04:25]} {[%emt
00:01:17]} gxf6 {[%clk 01:28:54]} {[%emt 00:00:58]} 15. Nxe4 {[%clk 01:04:11]}
{[%emt 00:00:44]} Qe7 {[%clk 01:28:57]} {[%emt 00:00:28]} 16. Qf3 {[%clk
01:04:02]} {[%emt 00:00:38]} f5 {[%clk 01:28:46]} {[%emt 00:00:41]} 17. Ng3
{[%clk 01:03:42]} {[%emt 00:00:49]} Re8 {[%clk 01:27:43]} {[%emt 00:01:33]} 18.
Re1 {[%clk 01:02:33]} {[%emt 00:01:38]} Qg5 {[%clk 01:27:17]} {[%emt 00:00:57]}
19. Re2 {[%clk 00:55:18]} {[%emt 00:07:44]} Qg4 {[%clk 01:26:39]} {[%emt
00:01:08]} 20. Qf2 {[%clk 00:54:15]} {[%emt 00:01:34]} Ne5 {[%clk 01:26:01]}
{[%emt 00:01:08]} 21. Nd2 {[%clk 00:50:11]} {[%emt 00:04:34]} Nxc4 {[%clk
01:25:37]} {[%emt 00:00:54]} 22. Nxc4 {[%clk 00:49:37]} {[%emt 00:01:04]} f6
{[%clk 01:24:22]} {[%emt 00:01:45]} 23. e4 {[%clk 00:43:43]} {[%emt 00:06:24]}
f4 {[%clk 01:24:20]} {[%emt 00:00:31]} 24. Nf1 {[%clk 00:43:53]} {[%emt
00:00:20]} b5 {[%clk 01:22:57]} {[%emt 00:01:54]} 25. Ncd2 {[%clk 00:43:21]}
{[%emt 00:01:02]} Bb7 {[%clk 01:22:41]} {[%emt 00:00:47]} 26. h3 {[%clk
00:42:18]} {[%emt 00:01:32]} Qg5 {[%clk 01:21:08]} {[%emt 00:02:03]} 27. Nf3
{[%clk 00:41:14]} {[%emt 00:01:34]} Qg6 {[%clk 01:20:54]} {[%emt 00:00:44]} 28.
e5 {[%clk 00:32:25]} {[%emt 00:09:19]} fxe5 {[%clk 01:18:46]} {[%emt 00:02:38]}
29. Nxe5 {[%clk 00:32:18]} {[%emt 00:00:38]} Qg5 {[%clk 01:16:02]} {[%emt
00:03:13]} 30. Nh2 {[%clk 00:31:06]} {[%emt 00:01:41]} Re7 {[%clk 01:13:14]}
{[%emt 00:03:18]} 31. Nhg4 {[%clk 00:29:47]} {[%emt 00:01:49]} h5 {[%clk
01:12:39]} {[%emt 00:01:05]} 32. h4 {[%clk 00:28:50]} {[%emt 00:01:27]} Qg7
{[%clk 01:11:20]} {[%emt 00:01:50]} 33. Nh2 {[%clk 00:28:00]} {[%emt 00:01:19]}
c5 {[%clk 01:10:11]} {[%emt 00:01:39]} 34. c3 {[%clk 00:24:43]} {[%emt
00:03:46]} Rae8 {[%clk 01:09:48]} {[%emt 00:00:53]} 35. Qxf4 {[%clk 00:19:37]}
{[%emt 00:05:36]} cxd4 {[%clk 01:09:43]} {[%emt 00:00:36]} 36. cxd4 {[%clk
00:19:57]} {[%emt 00:00:10]} Rf8 {[%clk 01:09:36]} {[%emt 00:00:36]} 37. Qd2
{[%clk 00:19:09]} {[%emt 00:01:18]} Rd8 {[%clk 01:06:43]} {[%emt 00:03:23]} 38.
Nhf3 {[%clk 00:17:03]} {[%emt 00:02:37]} Bxf3 {[%clk 01:03:07]} {[%emt
00:04:06]} 39. Nxf3 {[%clk 00:17:15]} {[%emt 00:00:17]} Rxe2 {[%clk 01:03:10]}
{[%emt 00:00:28]} 40. Qxe2 {[%clk 00:17:38]} {[%emt 00:00:07]} Qh6 {[%clk
01:01:42]} {[%emt 00:01:57]} 41. Ng5 {[%clk 00:15:39]} {[%emt 00:02:29]} Qg6
{[%clk 00:57:34]} {[%emt 00:04:39]} 42. Qf3 {[%clk 00:12:43]} {[%emt 00:03:26]}
Rf8 {[%clk 00:54:07]} {[%emt 00:03:56]} 43. Qd5+ {[%clk 00:11:45]} {[%emt
00:01:28]} Kh8 {[%clk 00:53:57]} {[%emt 00:00:40]} 44. Qd7 {[%clk 00:10:41]}
{[%emt 00:01:34]} Rf4 {[%clk 00:49:48]} {[%emt 00:04:39]} 45. Qc8 {[%clk
00:08:23]} {[%emt 00:02:48]} Qg8 {[%clk 00:49:48]} {[%emt 00:00:30]} 46. Qc6
{[%clk 00:08:23]} {[%emt 00:00:30]} Qf8 {[%clk 00:49:24]} {[%emt 00:00:54]} 47.
Nf3 {[%clk 00:08:12]} {[%emt 00:00:41]} Rg4 {[%clk 00:48:59]} {[%emt 00:00:55]}
48. Qd5 {[%clk 00:08:16]} {[%emt 00:00:26]} Qg7 {[%clk 00:48:52]} {[%emt
00:00:37]} 49. Qxh5 {[%clk 00:08:36]} {[%emt 00:00:09]} Kg8 {[%clk 00:49:11]}
{[%emt 00:00:11]} 50. Qe8+ {[%clk 00:08:58]} {[%emt 00:00:08]} Kh7 {[%clk
00:49:24]} {[%emt 00:00:17]} 51. Ng5 {[%clk 00:09:11]} {[%emt 00:00:17]} Rxg5
{[%clk 00:49:48]} {[%emt 00:00:06]} 52. hxg5 {[%clk 00:08:45]} {[%emt
00:00:56]} Qxd4+ {[%clk 00:50:10]} {[%emt 00:00:08]} 53. Kh2 {[%clk 00:08:16]}
{[%emt 00:00:59]} Qh4 {[%clk 00:50:19]} {[%emt 00:00:21]} 54. Kg1 {[%clk
00:08:34]} {[%emt 00:00:11]} Qd4+ {[%clk 00:50:42]} {[%emt 00:00:07]} 55. Kf1
{[%clk 00:08:20]} {[%emt 00:00:45]} Qf4+ {[%clk 00:50:57]} {[%emt 00:00:16]} 56.
Ke1 {[%clk 00:07:46]} {[%emt 00:01:03]} Qc1+ {[%clk 00:51:21]} {[%emt
00:00:07]} 57. Kf2 {[%clk 00:07:36]} {[%emt 00:00:40]} Qxb2+ {[%clk 00:51:40]}
{[%emt 00:00:11]} 58. Qe2 {[%clk 00:07:24]} {[%emt 00:00:42]} Qd4+ {[%clk
00:51:41]} {[%emt 00:00:29]} 59. Kf3 {[%clk 00:07:07]} {[%emt 00:00:46]} Qc3+
{[%clk 00:51:45]} {[%emt 00:00:26]} 60. Qe3 {[%clk 00:07:19]} {[%emt 00:00:18]}
Qa5 {[%clk 00:50:17]} {[%emt 00:01:58]} 61. Qe4 {[%clk 00:07:32]} {[%emt
00:00:17]} Kg7 {[%clk 00:50:40]} {[%emt 00:00:07]} 62. Qe5+ {[%clk 00:07:42]}
{[%emt 00:00:21]} Kf8 {[%clk 00:50:51]} {[%emt 00:00:18]} 63. Qd6+ {[%clk
00:07:35]} {[%emt 00:00:37]} Kg8 {[%clk 00:51:10]} {[%emt 00:00:11]} 64. Qe6+
{[%clk 00:07:29]} {[%emt 00:00:36]} Kf8 {[%clk 00:51:31]} {[%emt 00:00:10]} 65.
Qf5+ {[%clk 00:07:53]} {[%emt 00:00:06]} Kg8 {[%clk 00:51:55]} {[%emt
00:00:05]} 66. Qd5+ {[%clk 00:08:15]} {[%emt 00:00:09]} Kf8 {[%clk 00:52:18]}
{[%emt 00:00:08]} 67. Qc5+ {[%clk 00:08:28]} {[%emt 00:00:16]} Kg8 {[%clk
00:52:40]} {[%emt 00:00:08]} 68. a3 {[%clk 00:08:26]} {[%emt 00:00:32]} Qa4
{[%clk 00:52:16]} {[%emt 00:00:53]} 69. Qd5+ {[%clk 00:08:34]} {[%emt
00:00:22]} Kf8 {[%clk 00:52:34]} {[%emt 00:00:12]} 70. Qd6+ {[%clk 00:08:37]}
{[%emt 00:00:28]} Kg8 {[%clk 00:52:48]} {[%emt 00:00:16]} 71. Qe6+ {[%clk
00:07:57]} {[%emt 00:01:10]} Kf8 {[%clk 00:52:18]} {[%emt 00:00:59]} 72. Qf6+
{[%clk 00:08:03]} {[%emt 00:00:25]} Kg8 {[%clk 00:52:39]} {[%emt 00:00:09]} 73.
Qg6+ {[%clk 00:08:17]} {[%emt 00:00:16]} Kf8 {[%clk 00:52:52]} {[%emt
00:00:17]} 74. Qf5+ {[%clk 00:08:36]} {[%emt 00:00:11]} Kg8 {[%clk 00:53:00]}
{[%emt 00:00:22]} 75. Qg6+ {[%clk 00:07:37]} {[%emt 00:01:29]} Kf8 {[%clk
00:53:20]} {[%emt 00:00:11]} 76. Qh6+ {[%clk 00:08:01]} {[%emt 00:00:06]} Kg8
{[%clk 00:53:45]} {[%emt 00:00:04]} 77. Qe6+ {[%clk 00:07:20]} {[%emt
00:01:11]} Kf8 {[%clk 00:54:10]} {[%emt 00:00:06]} 78. Qc8+ {[%clk 00:07:43]}
{[%emt 00:00:07]} Kf7 {[%emt 00:00:10]} 79. Qd7+ {[%clk 00:07:07]} {[%emt
00:01:02]} 1/2-1/2

[Event "NJSK 2018 Jeugd C"]
[Site "Assen, Netherlands"]
[Date "2018.04.29"]
[Round "1.9"]
[White "Torensma, Christian"]
[Black "Cchung, Nyuk Lyn"]
[Result "0-1"]
[TimeControl "40/90m+30sec/move"]
[WhiteElo "1455"]
[BlackElo "1796"]

1. e4 {[%clk 01:30:59]} c5 {[%clk 01:30:51]} {[%emt 00:00:11]} 2. Nf3 {[%clk
01:31:22]} {[%emt 00:00:07]} d6 {[%clk 01:31:07]} {[%emt 00:00:13]} 3. d4
{[%clk 01:31:45]} {[%emt 00:00:07]} cxd4 {[%clk 01:31:31]} {[%emt 00:00:05]} 4.
Nxd4 {[%clk 01:32:08]} {[%emt 00:00:08]} Nf6 {[%clk 01:31:55]} {[%emt
00:00:05]} 5. Nc3 {[%clk 01:32:31]} {[%emt 00:00:07]} a6 {[%clk 01:32:20]}
{[%emt 00:00:06]} 6. Be2 {[%clk 01:32:56]} {[%emt 00:00:05]} e5 {[%clk
01:32:37]} {[%emt 00:00:12]} 7. Nb3 {[%clk 01:33:18]} {[%emt 00:00:08]} Be7
{[%clk 01:32:33]} {[%emt 00:00:33]} 8. Be3 {[%clk 01:33:36]} {[%emt 00:00:12]}
Be6 {[%clk 01:32:32]} {[%emt 00:00:32]} 9. O-O {[%clk 01:33:26]} {[%emt
00:00:40]} Qc7 {[%clk 01:31:43]} {[%emt 00:01:19]} 10. Qd2 {[%clk 01:32:08]}
{[%emt 00:01:49]} O-O {[%clk 01:29:19]} {[%emt 00:02:52]} 11. f3 {[%clk
01:30:46]} {[%emt 00:01:52]} Nbd7 {[%clk 01:22:22]} {[%emt 00:07:28]} 12. a4
{[%clk 01:20:28]} {[%emt 00:10:49]} Rac8 {[%clk 01:19:03]} {[%emt 00:03:49]} 13.
a5 {[%clk 00:59:22]} {[%emt 00:21:35]} Rfd8 {[%clk 01:01:37]} {[%emt 00:17:56]}
14. Rfc1 {[%clk 00:41:22]} {[%emt 00:18:30]} Qc6 {[%clk 00:52:29]} {[%emt
00:09:37]} 15. Rd1 {[%clk 00:21:28]} {[%emt 00:20:25]} Nc5 {[%clk 00:48:17]}
{[%emt 00:04:42]} 16. Nxc5 {[%clk 00:16:21]} {[%emt 00:05:37]} dxc5 {[%clk
00:45:42]} {[%emt 00:03:04]} 17. Qe1 {[%clk 00:15:18]} {[%emt 00:01:34]} h6
{[%clk 00:43:14]} {[%emt 00:02:58]} 18. Qg3 {[%clk 00:08:18]} {[%emt 00:07:30]}
Kh8 {[%clk 00:37:52]} {[%emt 00:05:51]} 19. Qf2 {[%clk 00:04:38]} {[%emt
00:04:10]} Nh5 {[%clk 00:35:51]} {[%emt 00:02:31]} 20. g3 {[%clk 00:01:48]}
{[%emt 00:03:21]} Nf6 {[%clk 00:35:15]} {[%emt 00:01:05]} 21. Bf1 {[%clk
00:01:17]} {[%emt 00:01:02]} Kg8 {[%clk 00:34:50]} {[%emt 00:00:54]} 22. Bg2
{[%clk 00:01:30]} {[%emt 00:00:17]} Rd7 {[%clk 00:34:55]} {[%emt 00:00:25]} 23.
Rxd7 {[%clk 00:00:49]} {[%emt 00:01:11]} Qxd7 {[%clk 00:34:55]} {[%emt
00:00:31]} 24. Na4 {[%clk 00:00:55]} {[%emt 00:00:24]} Qc6 {[%clk 00:34:49]}
{[%emt 00:00:35]} 25. Nb6 {[%clk 00:00:59]} {[%emt 00:00:27]} Rd8 {[%clk
00:35:04]} {[%emt 00:00:15]} 26. Bf1 {[%clk 00:00:40]} {[%emt 00:00:49]} Bf8
{[%clk 00:32:38]} {[%emt 00:02:55]} 27. Qe2 {[%clk 00:00:37]} {[%emt 00:00:33]}
Be7 {[%clk 00:31:47]} {[%emt 00:01:21]} 28. Qf2 {[%clk 00:00:52]} {[%emt
00:00:15]} Nd7 {[%clk 00:32:00]} {[%emt 00:00:18]} 29. Nxd7 {[%clk 00:01:11]}
{[%emt 00:00:11]} Rxd7 {[%clk 00:32:22]} {[%emt 00:00:08]} 30. Qe1 {[%clk
00:01:09]} {[%emt 00:00:32]} c4 {[%clk 00:31:58]} {[%emt 00:00:54]} 31. Bb6
{[%clk 00:00:34]} {[%emt 00:01:05]} Bc5+ {[%clk 00:32:14]} {[%emt 00:00:13]} 32.
Bxc5 {[%clk 00:01:02]} {[%emt 00:00:03]} Qxc5+ {[%clk 00:32:38]} {[%emt
00:00:06]} 33. Kh1 {[%clk 00:00:36]} {[%emt 00:00:57]} Qd4 {[%clk 00:32:05]}
{[%emt 00:01:02]} 34. c3 {[%clk 00:00:37]} {[%emt 00:00:29]} Qd2 {[%clk
00:32:12]} {[%emt 00:00:23]} 35. Qxd2 {[%clk 00:00:47]} {[%emt 00:00:20]} Rxd2
{[%clk 00:32:40]} {[%emt 00:00:02]} 36. Rb1 {[%clk 00:01:04]} {[%emt 00:00:13]}
Kf8 {[%clk 00:32:08]} {[%emt 00:01:00]} 37. Bg2 {[%clk 00:00:48]} {[%emt
00:00:48]} Ke7 {[%clk 00:32:18]} {[%emt 00:00:19]} 38. Kg1 {[%clk 00:00:57]}
{[%emt 00:00:21]} Kd7 {[%clk 00:32:26]} {[%emt 00:00:22]} 39. f4 {[%clk
00:01:06]} {[%emt 00:00:21]} f6 {[%clk 00:32:47]} {[%emt 00:00:09]} 40. f5
{[%clk 00:01:02]} {[%emt 00:00:35]} Bf7 {[%clk 00:33:09]} {[%emt 00:00:07]} 41.
Bf3 {[%clk 00:00:46]} {[%emt 00:00:46]} Kc6 {[%clk 00:33:31]} {[%emt 00:00:08]}
42. h4 {[%clk 00:00:50]} {[%emt 00:00:27]} Kb5 {[%clk 00:33:28]} {[%emt
00:00:33]} 43. Kf1 {[%clk 00:00:49]} {[%emt 00:00:31]} Kxa5 {[%clk 00:33:27]}
{[%emt 00:00:31]} 44. Bd1 {[%clk 00:00:43]} {[%emt 00:00:36]} b5 {[%clk
00:31:38]} {[%emt 00:02:19]} 45. h5 {[%clk 00:00:44]} {[%emt 00:00:28]} Kb6
{[%clk 00:31:34]} {[%emt 00:00:33]} 46. g4 {[%clk 00:00:46]} {[%emt 00:00:29]}
a5 {[%clk 00:30:41]} {[%emt 00:01:23]} 47. Ke1 {[%clk 00:01:05]} {[%emt
00:00:12]} Rh2 {[%clk 00:30:19]} {[%emt 00:00:51]} 48. Be2 {[%clk 00:01:00]}
{[%emt 00:00:35]} a4 {[%clk 00:30:26]} {[%emt 00:00:23]} 49. Bd1 {[%clk
00:00:00]} {[%emt 00:01:01]} 0-1

[Event "NJSK 2018 Jeugd C"]
[Site "Assen, Netherlands"]
[Date "2018.04.29"]
[Round "1.10"]
[White "Shakhverdian, William"]
[Black "Tiggelman, Vincent"]
[Result "1-0"]
[TimeControl "40/90m+30sec/move"]
[WhiteElo "1777"]
[BlackElo "1394"]

1. e4 {[%clk 01:30:58]} {[%emt 00:00:01]} c6 {[%clk 01:30:52]} {[%emt
00:00:10]} 2. d4 {[%clk 01:31:17]} {[%emt 00:00:11]} d5 {[%clk 01:31:17]}
{[%emt 00:00:04]} 3. Nc3 {[%clk 01:31:10]} {[%emt 00:00:37]} dxe4 {[%clk
01:31:40]} {[%emt 00:00:07]} 4. Nxe4 {[%clk 01:31:36]} {[%emt 00:00:04]} Bf5
{[%clk 01:31:50]} {[%emt 00:00:17]} 5. Ng3 {[%clk 01:32:03]} {[%emt 00:00:04]}
Bg6 {[%clk 01:32:09]} {[%emt 00:00:12]} 6. Nf3 {[%clk 01:32:22]} {[%emt
00:00:11]} Nd7 {[%clk 01:32:09]} {[%emt 00:00:30]} 7. h4 {[%clk 01:29:55]}
{[%emt 00:02:56]} h6 {[%clk 01:32:27]} {[%emt 00:00:12]} 8. h5 {[%clk
01:30:01]} {[%emt 00:00:25]} Bh7 {[%clk 01:32:36]} {[%emt 00:00:20]} 9. Bd3
{[%clk 01:30:29]} {[%emt 00:00:02]} Bxd3 {[%clk 01:32:41]} {[%emt 00:00:25]} 10.
Qxd3 {[%clk 01:30:44]} {[%emt 00:00:15]} e6 {[%clk 01:32:35]} {[%emt 00:00:36]}
11. Bd2 {[%clk 01:27:46]} {[%emt 00:03:28]} Ngf6 {[%clk 01:32:34]} {[%emt
00:00:31]} 12. Qe2 {[%clk 01:15:02]} {[%emt 00:13:14]} Be7 {[%clk 01:18:47]}
{[%emt 00:14:17]} 13. Ne5 {[%clk 01:11:31]} {[%emt 00:04:02]} O-O {[%clk
01:12:11]} {[%emt 00:07:04]} 14. O-O {[%clk 01:04:10]} {[%emt 00:07:52]} Re8
{[%clk 00:43:44]} {[%emt 00:28:57]} 15. Rad1 {[%clk 01:03:22]} {[%emt
00:01:18]} Qc7 {[%clk 00:34:07]} {[%emt 00:10:05]} 16. Rfe1 {[%clk 00:32:24]}
{[%emt 00:31:29]} Rad8 {[%clk 00:31:21]} {[%emt 00:03:16]} 17. c3 {[%clk
00:17:51]} {[%emt 00:15:04]} Qa5 {[%clk 00:15:00]} {[%emt 00:16:51]} 18. a3
{[%clk 00:16:59]} {[%emt 00:01:22]} Qb6 {[%clk 00:11:50]} {[%emt 00:03:38]} 19.
b4 {[%clk 00:13:18]} {[%emt 00:04:13]} a6 {[%clk 00:07:18]} {[%emt 00:05:02]}
20. Nf1 {[%clk 00:07:30]} {[%emt 00:06:18]} Qb5 {[%clk 00:04:27]} {[%emt
00:03:21]} 21. c4 {[%clk 00:02:28]} {[%emt 00:05:32]} Qb6 {[%clk 00:02:38]}
{[%emt 00:02:19]} 22. Be3 {[%clk 00:01:35]} {[%emt 00:01:23]} Qc7 {[%clk
00:01:48]} {[%emt 00:01:20]} 23. f4 {[%clk 00:01:54]} {[%emt 00:00:11]} Ne4
{[%clk 00:01:02]} {[%emt 00:01:16]} 24. Qd3 {[%clk 00:01:00]} {[%emt 00:01:24]}
Ndf6 {[%clk 00:00:37]} {[%emt 00:00:54]} 25. g4 {[%clk 00:00:43]} {[%emt
00:00:48]} Nd6 {[%clk 00:00:42]} {[%emt 00:00:25]} 26. Qe2 {[%clk 00:00:52]}
{[%emt 00:00:21]} Nde4 {[%clk 00:00:37]} {[%emt 00:00:36]} 27. Qd3 {[%clk
00:01:10]} {[%emt 00:00:11]} Nd6 {[%clk 00:00:57]} {[%emt 00:00:10]} 28. Ng3
{[%clk 00:01:11]} {[%emt 00:00:29]} Nxg4 {[%clk 00:01:13]} {[%emt 00:00:13]} 29.
Nxg4 {[%clk 00:01:26]} {[%emt 00:00:15]} Bh4 {[%clk 00:01:05]} {[%emt
00:00:39]} 30. Bf2 {[%clk 00:00:55]} {[%emt 00:01:02]} Bxg3 {[%clk 00:01:20]}
{[%emt 00:00:13]} 31. Qxg3 {[%clk 00:00:49]} {[%emt 00:00:37]} Nf5 {[%clk
00:01:37]} {[%emt 00:00:13]} 32. Nf6+ {[%clk 00:00:43]} {[%emt 00:00:36]} Kh8
{[%clk 00:01:26]} {[%emt 00:00:41]} 33. Nxe8 {[%clk 00:01:10]} {[%emt
00:00:03]} 1-0

[Event "NJSK 2018 Jeugd C"]
[Site "Assen, Netherlands"]
[Date "2018.04.29"]
[Round "1.11"]
[White "Albers, Sasa"]
[Black "Bartels, Vladimir"]
[Result "1-0"]
[TimeControl "40/90m+30sec/move"]
[WhiteElo "1336"]
[BlackElo "1757"]

1. e4 {[%clk 01:30:58]} {[%emt 00:00:03]} e5 {[%clk 01:30:56]} {[%emt
00:00:03]} 2. Bc4 {[%clk 01:31:23]} {[%emt 00:00:07]} Nf6 {[%clk 01:31:21]}
{[%emt 00:00:06]} 3. d3 {[%clk 01:31:45]} {[%emt 00:00:06]} Bc5 {[%clk
01:30:42]} {[%emt 00:01:08]} 4. Nc3 {[%clk 01:31:29]} {[%emt 00:00:46]} Nc6
{[%clk 01:29:16]} {[%emt 00:01:55]} 5. Nge2 {[%clk 01:29:59]} {[%emt 00:01:59]}
Na5 {[%clk 01:25:23]} {[%emt 00:04:23]} 6. Bb3 {[%clk 01:29:51]} {[%emt
00:00:39]} Nxb3 {[%clk 01:25:39]} {[%emt 00:00:15]} 7. axb3 {[%clk 01:30:14]}
{[%emt 00:00:06]} c6 {[%clk 01:18:46]} {[%emt 00:07:23]} 8. Na4 {[%clk
01:27:59]} {[%emt 00:02:46]} Be7 {[%clk 01:18:12]} {[%emt 00:01:03]} 9. Be3
{[%clk 01:23:35]} {[%emt 00:04:54]} Ng4 {[%clk 01:05:15]} {[%emt 00:13:27]} 10.
O-O {[%clk 01:16:53]} {[%emt 00:07:12]} d5 {[%clk 00:55:25]} {[%emt 00:10:19]}
11. Bc5 {[%clk 01:13:22]} {[%emt 00:04:02]} Bxc5 {[%clk 00:47:16]} {[%emt
00:08:39]} 12. Nxc5 {[%clk 01:13:43]} {[%emt 00:00:08]} Qe7 {[%clk 00:47:38]}
{[%emt 00:00:09]} 13. Na4 {[%clk 01:13:14]} {[%emt 00:00:59]} d4 {[%clk
00:47:55]} {[%emt 00:00:13]} 14. Nb6 {[%clk 01:09:54]} {[%emt 00:03:50]} Rb8
{[%clk 00:26:48]} {[%emt 00:21:36]} 15. Nxc8 {[%clk 01:09:53]} {[%emt
00:00:31]} Rxc8 {[%clk 00:24:42]} {[%emt 00:02:37]} 16. h3 {[%clk 01:07:38]}
{[%emt 00:02:45]} Nf6 {[%clk 00:24:23]} {[%emt 00:00:49]} 17. Rxa7 {[%clk
01:07:23]} {[%emt 00:00:45]} h5 {[%clk 00:22:43]} {[%emt 00:02:10]} 18. Ng3
{[%clk 01:06:14]} {[%emt 00:01:39]} g6 {[%clk 00:23:03]} {[%emt 00:00:10]} 19.
Qa1 {[%clk 01:00:42]} {[%emt 00:06:02]} h4 {[%clk 00:20:14]} {[%emt 00:03:19]}
20. Ra8 {[%clk 00:57:42]} {[%emt 00:03:30]} Qd7 {[%clk 00:19:50]} {[%emt
00:00:54]} 21. Rxc8+ {[%clk 00:56:34]} {[%emt 00:01:37]} Qxc8 {[%clk 00:19:37]}
{[%emt 00:00:44]} 22. Qa5 {[%clk 00:53:26]} {[%emt 00:03:38]} c5 {[%clk
00:03:58]} {[%emt 00:16:09]} 23. Qb5+ {[%clk 00:52:04]} {[%emt 00:01:52]} Qd7
{[%clk 00:03:59]} {[%emt 00:00:29]} 24. Qxd7+ {[%clk 00:49:18]} {[%emt
00:03:16]} Kxd7 {[%clk 00:04:23]} {[%emt 00:00:06]} 25. Ne2 {[%clk 00:49:28]}
{[%emt 00:00:19]} Ra8 {[%clk 00:04:37]} {[%emt 00:00:17]} 26. Rb1 {[%clk
00:48:22]} {[%emt 00:01:36]} g5 {[%clk 00:03:01]} {[%emt 00:02:06]} 27. Kf1
{[%clk 00:47:37]} {[%emt 00:01:15]} Nh5 {[%clk 00:01:17]} {[%emt 00:02:14]} 28.
Ng1 {[%clk 00:45:18]} {[%emt 00:02:48]} f6 {[%clk 00:00:56]} {[%emt 00:00:51]}
29. Nf3 {[%clk 00:44:52]} {[%emt 00:00:57]} Ng7 {[%clk 00:00:59]} {[%emt
00:00:27]} 30. Nh2 {[%clk 00:43:30]} {[%emt 00:01:51]} Ne6 {[%clk 00:00:42]}
{[%emt 00:00:48]} 31. g3 {[%clk 00:38:48]} {[%emt 00:05:12]} Ng7 {[%clk
00:00:41]} {[%emt 00:00:31]} 32. Kg2 {[%clk 00:37:34]} {[%emt 00:01:43]} hxg3
{[%clk 00:01:05]} {[%emt 00:00:06]} 33. fxg3 {[%clk 00:37:41]} {[%emt
00:00:23]} Ne6 {[%clk 00:00:54]} {[%emt 00:00:41]} 34. Ng4 {[%clk 00:37:36]}
{[%emt 00:00:35]} Ke7 {[%clk 00:01:12]} {[%emt 00:00:13]} 35. Rf1 {[%clk
00:28:11]} {[%emt 00:09:54]} Ra2 {[%clk 00:00:33]} {[%emt 00:01:09]} 36. Nxf6
{[%clk 00:28:39]} {[%emt 00:00:02]} Rxb2 {[%clk 00:00:52]} {[%emt 00:00:12]} 37.
Nd5+ {[%clk 00:28:54]} {[%emt 00:00:15]} Kd6 {[%clk 00:01:10]} {[%emt
00:00:12]} 38. Rf2 {[%clk 00:29:15]} {[%emt 00:00:09]} Nc7 {[%clk 00:01:14]}
{[%emt 00:00:26]} 39. Nxc7 {[%clk 00:26:27]} {[%emt 00:03:17]} Kxc7 {[%clk
00:01:40]} {[%emt 00:00:05]} 40. g4 {[%clk 00:26:43]} {[%emt 00:00:13]} Kd6
{[%clk 00:00:41]} {[%emt 00:01:29]} 41. h4 {[%clk 00:25:19]} {[%emt 00:01:55]}
gxh4 {[%clk 00:00:53]} {[%emt 00:00:17]} 42. g5 {[%clk 00:22:15]} {[%emt
00:03:34]} Ke7 {[%clk 00:00:38]} {[%emt 00:00:45]} 43. g6 {[%clk 00:18:13]}
{[%emt 00:04:33]} Ra2 {[%clk 00:01:02]} {[%emt 00:00:06]} 44. Kh3 {[%clk
00:18:30]} {[%emt 00:00:11]} Ra6 {[%clk 00:00:38]} {[%emt 00:00:55]} 45. Rg2
{[%clk 00:18:13]} {[%emt 00:00:48]} Ra8 {[%clk 00:00:54]} {[%emt 00:00:14]} 46.
g7 {[%clk 00:18:12]} {[%emt 00:00:31]} Kf7 {[%clk 00:00:59]} {[%emt 00:00:25]}
47. Kxh4 {[%clk 00:18:31]} {[%emt 00:00:10]} Rg8 {[%clk 00:01:04]} {[%emt
00:00:25]} 48. Kh5 {[%clk 00:17:15]} {[%emt 00:01:47]} Rxg7 {[%clk 00:00:36]}
{[%emt 00:00:58]} 49. Rxg7+ {[%clk 00:17:38]} {[%emt 00:00:07]} Kxg7 {[%clk
00:00:59]} {[%emt 00:00:07]} 50. Kg5 {[%clk 00:18:02]} {[%emt 00:00:06]} Kf7
{[%clk 00:01:09]} {[%emt 00:00:20]} 51. Kf5 {[%clk 00:18:25]} {[%emt 00:00:06]}
b6 {[%clk 00:01:20]} {[%emt 00:00:19]} 52. Kxe5 {[%clk 00:18:45]} {[%emt
00:00:10]} Ke7 {[%clk 00:01:46]} {[%emt 00:00:05]} 53. b4 {[%clk 00:18:35]}
{[%emt 00:00:40]} cxb4 {[%clk 00:01:17]} {[%emt 00:00:59]} 54. Kxd4 {[%clk
00:18:57]} {[%emt 00:00:07]} b5 {[%clk 00:01:27]} {[%emt 00:00:21]} 55. Kc5
{[%clk 00:19:20]} {[%emt 00:00:06]} b3 {[%clk 00:01:12]} {[%emt 00:00:46]} 56.
cxb3 {[%clk 00:19:44]} {[%emt 00:00:05]} Ke6 {[%clk 00:01:39]} {[%emt
00:00:03]} 57. Kxb5 {[%clk 00:20:02]} {[%emt 00:00:12]} 1-0